fUST/lending_fUST_20240703
["ID","MTS","AMOUNT","RATE_DAILY","PERIOD"]
[330929250,1719945178187,210.05,0.00010959,2]
[330929251,1719945179083,822.4240436,0.00013078,2]
[330929252,1719945180716,3771.31175907,0.00012,2]
[330929253,1719945180955,4695.19875852,0.00012,2]
[330929254,1719945183740,273.37336231,9.9e-05,2]
[330929255,1719945186125,3113.3136516,0.00013078,2]
[330929256,1719945188856,175.04,0.00010959,2]
[330929257,1719945190211,154.85288975,0.00013283,2]
[330929258,1719945191740,154.85288975,0.00010959,2]
[330929259,1719945191866,273.37336231,9.9e-05,2]
[330929260,1719945194418,250.0,0.00013078,2]
[330929261,1719945194928,2100.92504791,0.00013283,2]
[330929262,1719945199299,875.22,0.00010959,2]
[330929263,1719945199685,273.37336231,9.9e-05,2]
[330929264,1719945199720,16234.89449455,0.00010959,2]
[330929265,1719945202179,818.39219299,9.999e-05,2]
[330929266,1719945207798,273.37336231,9.9e-05,2]
[330929267,1719945208779,221.75192155,0.00013283,2]
[330929268,1719945209890,525.021528,9.999e-05,2]
[330929269,1719945210491,661.66867911,9.999e-05,2]
[330929270,1719945215866,517.53063591,9.999e-05,2]
[330929271,1719945216233,273.37336231,9.9e-05,2]
[330929272,1719945216963,170.00114701,9.999e-05,2]
[330929273,1719945218931,155.0300469,0.00013283,2]
[330929274,1719945221140,848.86837099,9.999e-05,2]
[330929275,1719945222977,509.91756708,9.999e-05,2]
[330929276,1719945223338,934.12399024,9.999e-05,2]
[330929277,1719945223462,531.82036901,9.999e-05,2]
[330929278,1719945225041,273.37336231,9.9e-05,2]
[330929279,1719945225423,523.33913778,9.999e-05,2]
[330929280,1719945225947,4695.19875852,0.00013283,2]
[330929281,1719945227230,154.85288975,0.00013283,2]
[330929282,1719945228776,639.49698599,9.999e-05,2]
[330929283,1719945231903,599.73966422,9.999e-05,2]
[330929284,1719945232839,273.37336231,9.9e-05,2]
[330929285,1719945235233,1009.11622815,0.0001,2]
[330929286,1719945235676,154.85288975,9.999e-05,2]
[330929287,1719945235727,2715.8900748,0.00013283,2]
[330929288,1719945239078,776.67023249,9.999e-05,2]
[330929289,1719945239262,16234.89449455,0.0001212,2]
[330929290,1719945239308,576.08003937,9.999e-05,2]
[330929291,1719945240801,273.37336231,9.9e-05,2]
[330929292,1719945242621,457.96077983,9.999e-05,2]
[330929293,1719945245279,160.0,9.999e-05,2]
[330929294,1719945245656,196.07967372,9.999e-05,2]
[330929295,1719945246437,154.86836189,0.0001,2]
[330929303,1719945248626,273.37336231,9.9e-05,2]
[330929304,1719945249422,155.1996061,9.999e-05,2]
[330929305,1719945249817,374.40487559,9.999e-05,2]
[330929306,1719945250345,724.71412204,9.999e-05,2]
[330929307,1719945250675,818.39219299,0.0001212,2]
[330929308,1719945250707,267.79356134,9.999e-05,2]
[330929309,1719945254345,196.45652086,0.00013975,2]
[330929310,1719945254383,286.70325749,9.999e-05,2]
[330929311,1719945254506,155.3008146,9.999e-05,2]
[330929312,1719945255171,196.45652086,0.00013977,2]
[330929313,1719945255579,843.72830462,9.999e-05,2]
[330929314,1719945255727,183.87089765,9.999e-05,2]
[330929315,1719945257227,196.45652086,0.00013978,2]
[330929316,1719945257322,273.37336231,9.9e-05,2]
[330929317,1719945257572,457.96077983,9.999e-05,2]
[330929318,1719945257738,193.18071048,9.999e-05,2]
[330929319,1719945258123,329.32195945,9.999e-05,2]
[330929320,1719945259184,196.45652086,0.0001398,2]
[330929321,1719945261159,196.45652086,0.00013981,2]
[330929322,1719945261452,517.53063591,0.0001212,2]
[330929323,1719945262089,209.0766601,9.999e-05,2]
[330929324,1719945262295,159.25600929,9.999e-05,2]
[330929325,1719945262993,348.00165015,0.0001212,2]
[330929326,1719945264013,155.04141504,9.999e-05,2]
[330929327,1719945264208,155.9085648,0.0001212,2]
[330929328,1719945264933,2100.92504791,0.0001212,2]
[330929329,1719945265428,196.6196089,0.0001212,2]
[330929330,1719945266395,273.37336231,9.9e-05,2]
[330929331,1719945266519,164.41835835,9.999e-05,2]
[330929332,1719945269086,318.47325636,9.999e-05,2]
[330929333,1719945269516,154.85288975,9.999e-05,2]
[330929334,1719945270198,172.78767903,0.0001212,2]
[330929335,1719945270494,159.91559306,9.999e-05,2]
[330929336,1719945271473,509.91756708,0.0001212,2]
[330929337,1719945271995,933.60866086,0.0001212,2]
[330929338,1719945272159,526.61709396,0.0001212,2]
[330929339,1719945272601,402.64531294,9.999e-05,2]
[330929340,1719945272676,525.74955487,0.0001212,2]
[330929341,1719945273572,154.85288975,9.999e-05,2]
[330929342,1719945274504,273.37336231,9.9e-05,2]
[330929343,1719945274624,200.36376611,9.999e-05,2]
[330929344,1719945275091,154.85288975,9.999e-05,2]
[330929345,1719945278222,175.11422341,9.999e-05,2]
[330929346,1719945278399,154.85288975,9.999e-05,2]
[330929347,1719945278431,221.30418609,9.999e-05,2]
[330929348,1719945279474,304.17957922,9.999e-05,2]
[330929349,1719945280644,154.85288975,9.999e-05,2]
[330929350,1719945282275,182.5470397,9.999e-05,2]
[330929351,1719945282563,273.37336231,9.9e-05,2]
[330929352,1719945284460,390.1277621,0.00013078,2]
[330929353,1719945285094,154.85288975,9.999e-05,2]
[330929354,1719945285124,303.47406765,9.999e-05,2]
[330929355,1719945286588,776.67023249,0.0001212,2]
[330929356,1719945289735,11217.20031857,0.0001212,2]
[330929357,1719945289926,201.50422459,9.999e-05,2]
[330929358,1719945290041,155.51402623,9.999e-05,2]
[330929359,1719945290630,273.37336231,9.9e-05,2]
[330929360,1719945292362,238.86451454,9.999e-05,2]
[330929361,1719945292466,159.05374263,9.999e-05,2]
[330929362,1719945293497,208.55356025,9.999e-05,2]
[330929363,1719945293844,249.93313065,0.0001212,2]
[330929364,1719945295954,4695.19875852,0.0001212,2]
[330929365,1719945296619,305.03017585,9.999e-05,2]
[330929366,1719945296650,191.90215741,0.0001212,2]
[330929367,1719945298747,154.85288975,9.999e-05,2]
[330929368,1719945298927,182.18960066,9.999e-05,2]
[330929369,1719945299052,273.37336231,9.9e-05,2]
[330929370,1719945301370,517.53063591,0.0001212,2]
[330929371,1719945302323,374.40487559,0.0001212,2]
[330929372,1719945303068,843.72830462,0.0001212,2]
[330929373,1719945304966,154.85288975,9.999e-05,2]
[330929374,1719945304998,154.85288975,9.999e-05,2]
[330929375,1719945305672,297.25789403,0.0001212,2]
[330929376,1719945306156,172.35932832,0.0001212,2]
[330929377,1719945306472,509.91756708,0.0001212,2]
[330929378,1719945307000,208.55356025,9.999e-05,2]
[330929379,1719945307144,273.37336231,9.9e-05,2]
[330929380,1719945307735,286.70325749,0.0001212,2]
[330929381,1719945308134,268.30894878,9.999e-05,7]
[330929382,1719945310049,155.04208817,9.999e-05,2]
[330929383,1719945310590,209.0614715,9.999e-05,2]
[330929384,1719945312061,156.99371734,0.0001212,2]
[330929385,1719945312537,155.86575325,9.999e-05,2]
[330929386,1719945312576,154.85288975,9.999e-05,2]
[330929387,1719945312618,318.47325636,0.0001212,2]
[330929388,1719945314281,154.85288975,9.999e-05,2]
[330929389,1719945315643,273.37336231,9.9e-05,2]
[330929390,1719945315935,157.36069011,9.999e-05,2]
[330929391,1719945317607,425.17063083,9.999e-05,2]
[330929392,1719945320013,233.81097976,9.999e-05,2]
[330929393,1719945320412,154.85288975,9.999e-05,2]
[330929394,1719945321033,293.32916452,9.999e-05,2]
[330929395,1719945322708,525.74955487,0.0001212,2]
[330929396,1719945322767,189.63326566,0.0001212,2]
[330929397,1719945323785,273.37336231,9.9e-05,2]
[330929398,1719945324596,776.67023249,0.0001212,2]
[330929399,1719945324999,159.91559306,0.0001212,2]
[330929400,1719945326534,154.85288975,0.0001212,2]
[330929401,1719945327563,154.85288975,9.999e-05,2]
[330929402,1719945327655,200.79020594,9.999e-05,2]
[330929403,1719945328472,207.95202431,9.999e-05,2]
[330929404,1719945330131,154.85288975,0.0001212,2]
[330929406,1719945330901,154.85288975,0.0001212,2]
[330929407,1719945331569,273.37336231,9.9e-05,2]
[330929408,1719945331813,232.30991908,9.999e-05,2]
[330929409,1719945331873,158.10762138,9.999e-05,2]
[330929410,1719945332071,154.85288975,0.0001212,2]
[330929411,1719945336550,155.51402623,0.0001212,2]
[330929412,1719945336935,179.77136505,9.999e-05,2]
[330929413,1719945337856,154.85288975,9.999e-05,2]
[330929414,1719945338500,184.44651812,9.999e-05,2]
[330929415,1719945339694,273.37336231,9.9e-05,2]
[330929416,1719945340589,209.0614715,9.999e-05,2]
[330929417,1719945340620,154.91476904,0.0001212,2]
[330929418,1719945343588,154.85288975,9.999e-05,2]
[330929419,1719945347317,374.40487559,0.0001212,2]
[330929420,1719945347568,273.37336231,9.9e-05,2]
[330929421,1719945352884,2095.3516675,0.00013699,2]
[330929422,1719945353498,154.85288975,9.999e-05,2]
[330929423,1719945354253,154.85288975,9.999e-05,2]
[330929425,1719945355581,273.37336231,9.9e-05,2]
[330929426,1719945356826,159.55601659,9.999e-05,2]
[330929427,1719945356857,193.69798923,9.999e-05,2]
[330929428,1719945364617,273.37336231,9.9e-05,2]
[330929429,1719945364705,369.38118446,9.999e-05,2]
[330929430,1719945367873,154.85288975,9.999e-05,2]
[330929431,1719945371057,402.16827863,9.999e-05,2]
[330929432,1719945371603,195.69863572,9.999e-05,2]
[330929433,1719945372770,273.37336231,9.9e-05,2]
[330929434,1719945376729,154.85288975,9.999e-05,2]
[330929435,1719945379053,402.16827863,9.999e-05,2]
[330929436,1719945380470,273.37336231,9.9e-05,2]
[330929437,1719945383521,154.85288975,9.999e-05,2]
[330929439,1719945389333,273.37336231,9.9e-05,2]
[330929440,1719945397752,154.85288975,9.999e-05,2]
[330929441,1719945397816,273.37336231,9.9e-05,2]
[330929442,1719945399986,155.3694183,9.999e-05,2]
[330929443,1719945400401,154.85288975,9.999e-05,2]
[330929444,1719945402656,200.79020594,9.999e-05,2]
[330929445,1719945404187,154.85288975,0.0001212,2]
[330929446,1719945406612,273.37336231,9.9e-05,2]
[330929447,1719945406788,293.32916452,9.999e-05,2]
[330929448,1719945408944,157.94776583,9.999e-05,2]
[330929449,1719945415284,195.69863572,0.0001212,2]
[330929450,1719945415316,273.37336231,9.9e-05,2]
[330929451,1719945417335,159.16328763,0.0001212,2]
[330929452,1719945417966,4695.19875852,0.0001212,2]
[330929453,1719945418329,295.62816505,0.0001212,2]
[330929454,1719945421984,159.99997649,9.999e-05,2]
[330929455,1719945422019,210.43537307,9.999e-05,2]
[330929457,1719945423744,273.37336231,9.9e-05,2]
[330929458,1719945424227,154.85288975,0.0001212,2]
[330929459,1719945424370,155.51540888,0.0001212,2]
[330929460,1719945425108,318.47325636,9.999e-05,2]
[330929461,1719945426091,425.17063083,9.999e-05,2]
[330929462,1719945426344,286.70325749,9.999e-05,2]
[330929463,1719945426474,208.81637711,9.999e-05,2]
[330929464,1719945430136,268.30894878,9.999e-05,7]
[330929465,1719945431427,273.37336231,9.9e-05,2]
[330929466,1719945432061,566.40031825,9.999e-05,2]
[330929467,1719945434337,215.66158807,9.999e-05,2]
[330929468,1719945434414,275.4762825,0.0001212,2]
[330929469,1719945436898,158.10762138,9.999e-05,2]
[330929471,1719945439897,154.85288975,0.0001212,2]
[330929472,1719945440384,273.37336231,9.9e-05,2]
[330929473,1719945440673,7234.07750944,0.0001,2]
[330929474,1719945440924,157.36069011,9.999e-05,2]
[330929475,1719945444880,525.021528,9.999e-05,2]
[330929476,1719945445050,155.51402623,9.999e-05,2]
[330929477,1719945445131,268.30894878,9.999e-05,7]
[330929478,1719945447553,540.51500323,0.0001212,2]
[330929479,1719945448162,200.79020594,0.0001212,2]
[330929480,1719945448827,273.37336231,9.9e-05,2]
[330929481,1719945452061,190.45263152,9.999e-05,2]
[330929482,1719945452095,297.56578136,9.999e-05,2]
[330929483,1719945454362,156.00822159,0.0001212,2]
[330929485,1719945456787,293.32916452,0.0001212,2]
[330929486,1719945457005,661.12832609,0.0001212,2]
[330929487,1719945457203,1914.55138167,0.0001212,2]
[330929488,1719945457457,273.37336231,9.9e-05,2]
[330929489,1719945457506,159.91559306,9.999e-05,2]
[330929490,1719945457648,172.84080813,9.999e-05,2]
[330929491,1719945459592,154.85288975,9.999e-05,2]
[330929492,1719945460511,154.85288975,9.999e-05,2]
[330929493,1719945461413,154.85288975,9.999e-05,2]
[330929494,1719945463742,286.70325749,0.0001212,2]
[330929495,1719945465976,273.37336231,9.9e-05,2]
[330929496,1719945470930,157.36069011,9.999e-05,2]
[330929497,1719945471688,247.94219501,9.999e-05,2]
[330929499,1719945473137,176.74654804,9.999e-05,2]
[330929500,1719945474025,273.37336231,9.9e-05,2]
[330929501,1719945475105,382.70626183,0.0001212,2]
[330929502,1719945477217,165.9806044,0.0001212,2]
[330929504,1719945478585,209.0614715,9.999e-05,2]
[330929505,1719945479391,304.21161942,0.0001212,2]
[330929506,1719945481887,273.37336231,9.9e-05,2]
[330929507,1719945481975,531.11088939,0.0001212,2]
[330929508,1719945482568,566.40031825,0.0001212,2]
[330929509,1719945483099,195.69863572,0.0001212,2]
[330929510,1719945484560,166.13994336,0.0001212,2]
[330929511,1719945484595,292.15179624,0.0001212,2]
[330929512,1719945484625,154.85288975,9.999e-05,2]
[330929513,1719945485588,843.72830462,9.999e-05,2]
[330929514,1719945489906,155.59400113,0.0001212,2]
[330929515,1719945489939,273.37336231,9.9e-05,2]
[330929516,1719945490685,154.85288975,9.999e-05,2]
[330929517,1719945494631,268.30894878,0.0001212,7]
[330929518,1719945496918,154.85288975,0.0001212,2]
[330929520,1719945497391,372.57776094,0.0001212,2]
[330929521,1719945498086,155.6103543,0.0001212,2]
[330929522,1719945498606,824.18637176,0.00013974,2]
[330929523,1719945498792,294.42700103,0.0001212,2]
[330929524,1719945499102,273.37336231,9.9e-05,2]
[330929525,1719945499768,286.70325749,0.0001212,2]
[330929526,1719945507042,509.52742891,9.999e-05,2]
[330929528,1719945508422,273.37336231,9.9e-05,2]
[330929529,1719945508453,157.36069011,0.0001212,2]
[330929531,1719945509156,200.79020594,0.0001212,2]
[330929532,1719945510084,457.83791694,0.0001212,2]
[330929533,1719945510254,525.74955487,0.0001,2]
[330929534,1719945513426,162.56962364,9.999e-05,2]
[330929535,1719945514000,244.55373355,0.0001212,2]
[330929536,1719945516936,273.37336231,9.9e-05,2]
[330929537,1719945519433,309.6650717,0.00013077,2]
[330929538,1719945523274,154.85288975,9.999e-05,2]
[330929539,1719945525064,273.37336231,9.9e-05,2]
[330929541,1719945533556,273.37336231,9.9e-05,2]
[330929542,1719945539618,776.67023249,9.999e-05,2]
[330929543,1719945541759,273.37336231,9.9e-05,2]
[330929544,1719945549652,273.37336231,9.9e-05,2]
[330929545,1719945557832,273.37336231,9.9e-05,2]
[330929546,1719945559462,1037.21141,0.00013699,2]
[330929547,1719945565739,273.37336231,9.9e-05,2]
[330929548,1719945569166,200.79020594,0.00012,2]
[330929549,1719945574336,273.37336231,9.9e-05,2]
[330929550,1719945575435,157.36069011,0.00012,2]
[330929551,1719945578094,843.72830462,9.999e-05,2]
[330929555,1719945580757,286.70325749,0.00012,2]
[330929556,1719945581604,776.67023249,0.00012,2]
[330929557,1719945582265,273.37336231,9.9e-05,2]
[330929558,1719945591211,273.37336231,9.9e-05,2]
[330929559,1719945594532,154.85288975,9.999e-05,2]
[330929560,1719945596076,157.18675359,9.999e-05,2]
[330929561,1719945596601,154.85288975,9.999e-05,2]
[330929563,1719945598504,155.19258173,9.999e-05,2]
[330929564,1719945599016,273.37336231,9.9e-05,2]
[330929565,1719945599600,323.92651042,9.999e-05,2]
[330929566,1719945601791,271.37568701,9.999e-05,2]
[330929567,1719945603103,195.69863572,0.00012,2]
[330929568,1719945605174,208.30283817,9.999e-05,2]
[330929569,1719945605347,24900.0,0.00013078,2]
[330929570,1719945607120,273.37336231,9.9e-05,2]
[330929573,1719945608088,843.72830462,9.999e-05,2]
[330929574,1719945615753,273.37336231,9.9e-05,2]
[330929575,1719945618418,182.76510923,9.999e-05,2]
[330929576,1719945620204,525.74955487,0.0001,2]
[330929577,1719945623048,522.4072504,0.00013181,2]
[330929578,1719945624023,273.37336231,9.9e-05,2]
[330929579,1719945627353,932.82450108,9.999e-05,2]
[330929580,1719945632084,273.37336231,9.9e-05,2]
[330929582,1719945640096,273.37336231,9.9e-05,2]
[330929583,1719945641611,776.67023249,0.0001212,2]
[330929584,1719945643588,2100.92504791,9.999e-05,2]
[330929585,1719945645369,164.09232475,0.00013974,2]
[330929586,1719945646228,1913.49563451,0.0001212,2]
[330929587,1719945647405,164.09232474,0.00013977,2]
[330929588,1719945651624,154.85288975,0.0001212,2]
[330929589,1719945654694,154.85288975,0.0001212,2]
[330929590,1719945660615,843.72830462,0.0001212,2]
[330929591,1719945663383,853.8405688,0.00013077,2]
[330929592,1719945674710,525.74955487,0.0001212,2]
[330929593,1719945700147,266.77407786,9.999e-05,7]
[330929595,1719945704315,293.32916452,9.999e-05,2]
[330929597,1719945729069,721.16307529,0.00013974,2]
[330929600,1719945746806,292.81117586,0.0001212,2]
[330929607,1719945754459,2100.92504791,9.999e-05,2]
[330929608,1719945766450,5287.92984094,0.00013948,2]
[330929609,1719945791874,1665.69308502,0.00013986,2]
[330929616,1719945834218,525.74955487,0.0001,2]
[330929617,1719945854307,1255.87105743,0.00013948,2]
[330929618,1719945860116,154.85288975,9.999e-05,2]
[330929619,1719945861378,723.6137849,9.999e-05,2]
[330929620,1719945866107,220.84480133,9.999e-05,2]
[330929636,1719945891132,776.67023249,9.999e-05,2]
[330929641,1719945914628,182.45144017,0.0001212,2]
[330929642,1719945919110,797.86976446,9.999e-05,2]
[330929645,1719945931981,14877.44110607,0.0001212,2]
[330929646,1719945940673,866.17,0.00010959,2]
[330929647,1719945945178,-300.0,0.00014072,2]
[330929648,1719945945198,-500.0,0.00014072,2]
[330929649,1719945945219,-500.0,0.00014072,2]
[330929650,1719945945239,-500.0,0.00014072,2]
[330929651,1719945945260,-500.0,0.00014072,2]
[330929652,1719945945279,-416.5541721,0.00014072,2]
[330929653,1719945945301,-500.0,0.00014073,2]
[330929654,1719945945322,-500.0,0.00014073,2]
[330929655,1719945945341,-503.54182777,0.00014073,2]
[330929656,1719945945361,-500.0,0.00014073,2]
[330929657,1719945945381,-500.0,0.00014073,2]
[330929658,1719945945401,-500.0,0.00014073,2]
[330929659,1719945945422,-1135.21,0.00014073,2]
[330929660,1719945945442,-500.0,0.00014073,2]
[330929661,1719945945462,-500.0,0.00014073,2]
[330929662,1719945945484,-500.0,0.00014073,2]
[330929663,1719945945504,-500.0,0.00014073,2]
[330929664,1719945945525,-16197.15,0.00014073,2]
[330929665,1719945945547,-1242.99,0.00014073,2]
[330929666,1719945945570,-500.0,0.00014073,2]
[330929667,1719945945590,-1913.05,0.00014073,2]
[330929668,1719945945613,-72.64657647,0.00014073,2]
[330929669,1719945951194,381.11,0.00010959,2]
[330929670,1719945954469,631.01769087,0.00013973,2]
[330929671,1719945986852,3000.0,0.00013699,2]
[330929672,1719945988522,4695.19875852,0.0001212,2]
[330929674,1719946007123,776.67023249,9.999e-05,2]
[330929675,1719946018509,4695.19875852,0.0001212,2]
[330929676,1719946025241,525.74955487,0.0001,2]
[330929677,1719946030067,262.5477196,0.00013973,2]
[330929678,1719946032606,457.31863482,9.999e-05,2]
[330929679,1719946048289,299.06126958,9.999e-05,2]
[330929681,1719946050703,244.0690924,9.999e-05,2]
[330929682,1719946051116,-315.22,0.00014072,2]
[330929683,1719946051140,-257.25285866,0.00014072,2]
[330929684,1719946051161,-500.0,0.00014072,2]
[330929685,1719946051180,-735.41,0.00014072,2]
[330929686,1719946051202,-500.0,0.00014072,2]
[330929687,1719946051224,-500.0,0.00014072,2]
[330929688,1719946051245,-138.20026618,0.00014073,2]
[330929689,1719946051268,-500.0,0.00014073,2]
[330929690,1719946051294,-500.0,0.00014073,2]
[330929691,1719946051314,-500.0,0.00014073,2]
[330929692,1719946051335,-559.8,0.00014073,2]
[330929693,1719946051358,-502.90942886,0.00014073,2]
[330929694,1719946051378,-519.19840664,0.00014073,2]
[330929695,1719946051399,-1035.33,0.00014073,2]
[330929696,1719946051421,-1175.18,0.00014073,2]
[330929697,1719946051442,-500.0,0.00014073,2]
[330929698,1719946051463,-500.0,0.00014073,2]
[330929699,1719946051484,-500.0,0.00014073,2]
[330929700,1719946051505,-500.0,0.00014073,2]
[330929701,1719946051530,-500.0,0.00014073,2]
[330929702,1719946051552,-500.0,0.00014073,2]
[330929703,1719946051574,-813.94,0.00014073,2]
[330929704,1719946051596,-726.09,0.00014073,2]
[330929705,1719946051618,-169.64,0.00014073,2]
[330929706,1719946051640,-1377.4,0.00014073,2]
[330929707,1719946051666,-2212.95,0.00014073,2]
[330929708,1719946051686,-500.0,0.00014073,2]
[330929709,1719946051708,-1002.34,0.00014073,2]
[330929710,1719946051729,-3278.13,0.00014073,2]
[330929711,1719946051755,-500.0,0.00014073,2]
[330929712,1719946051776,-657.67,0.00014073,2]
[330929713,1719946051801,-1751.74,0.00014073,2]
[330929714,1719946051822,-500.0,0.00014073,2]
[330929715,1719946051845,-500.0,0.00014073,2]
[330929716,1719946051866,-500.0,0.00014073,2]
[330929717,1719946051889,-1230.0,0.00014073,2]
[330929718,1719946051909,-500.0,0.00014073,2]
[330929719,1719946051931,-1833.34,0.00014073,2]
[330929720,1719946051952,-500.0,0.00014073,2]
[330929721,1719946051973,-500.0,0.00014073,2]
[330929722,1719946051995,-500.0,0.00014073,2]
[330929723,1719946052015,-3359.08,0.00014073,2]
[330929724,1719946052037,-4316.84,0.00014073,2]
[330929725,1719946052058,-500.0,0.00014073,2]
[330929726,1719946052079,-312.22,0.00014073,2]
[330929727,1719946052101,-1241.65,0.00014073,2]
[330929728,1719946052121,-604.19,0.00014073,2]
[330929729,1719946052142,-500.0,0.00014073,2]
[330929730,1719946052163,-500.0,0.00014073,2]
[330929731,1719946052315,-255.93,0.00014074,2]
[330929732,1719946052336,-500.0,0.00014074,2]
[330929733,1719946052357,-500.0,0.00014074,2]
[330929734,1719946052380,-500.0,0.00014074,2]
[330929735,1719946052403,-275.72,0.00014074,2]
[330929736,1719946052424,-500.0,0.00014074,2]
[330929737,1719946052444,-462.89011117,0.00014074,2]
[330929738,1719946052465,-546.14,0.00014074,2]
[330929739,1719946052486,-500.0,0.00014074,2]
[330929740,1719946052506,-500.56,0.00014074,2]
[330929741,1719946052527,-304.12,0.00014074,2]
[330929742,1719946052548,-500.0,0.00014074,2]
[330929743,1719946052568,-500.0,0.00014074,2]
[330929744,1719946052588,-500.0,0.00014074,2]
[330929745,1719946052609,-500.0,0.00014074,2]
[330929746,1719946052630,-500.0,0.00014074,2]
[330929747,1719946052654,-500.0,0.00014074,2]
[330929748,1719946052674,-500.0,0.00014074,2]
[330929749,1719946052696,-634.12,0.00014074,2]
[330929750,1719946052715,-209.809523,0.00014074,2]
[330929751,1719946052736,-742.48,0.00014074,2]
[330929752,1719946052755,-500.0,0.00014074,2]
[330929753,1719946052775,-500.0,0.00014074,2]
[330929754,1719946052795,-500.0,0.00014074,2]
[330929755,1719946052814,-500.0,0.00014074,2]
[330929756,1719946052834,-296.33772607,0.00014074,2]
[330929757,1719946052854,-500.0,0.00014074,2]
[330929758,1719946052875,-500.0,0.00014074,2]
[330929759,1719946052895,-628.63,0.00014074,2]
[330929760,1719946052914,-867.34,0.00014074,2]
[330929761,1719946052934,-500.0,0.00014074,2]
[330929762,1719946052954,-553.31548446,0.00014074,2]
[330929763,1719946052975,-500.0,0.00014074,2]
[330929764,1719946052995,-500.0,0.00014074,2]
[330929765,1719946053016,-804.15,0.00014074,2]
[330929766,1719946053036,-500.0,0.00014074,2]
[330929767,1719946053058,-500.0,0.00014074,2]
[330929768,1719946053080,-500.0,0.00014074,2]
[330929769,1719946053100,-500.0,0.00014074,2]
[330929770,1719946053122,-500.0,0.00014074,2]
[330929771,1719946053142,-500.0,0.00014074,2]
[330929772,1719946053165,-367.59822022,0.00014074,2]
[330929773,1719946053185,-500.0,0.00014074,2]
[330929774,1719946053206,-531.90645372,0.00014074,2]
[330929775,1719946053226,-500.0,0.00014074,2]
[330929776,1719946053246,-500.0,0.00014074,2]
[330929777,1719946053266,-500.0,0.00014074,2]
[330929778,1719946053286,-500.0,0.00014074,2]
[330929779,1719946053306,-510.26,0.00014074,2]
[330929780,1719946053325,-500.0,0.00014074,2]
[330929781,1719946053346,-500.0,0.00014074,2]
[330929782,1719946053366,-500.0,0.00014074,2]
[330929783,1719946053390,-6857.16,0.00014074,2]
[330929784,1719946053410,-500.0,0.00014074,2]
[330929785,1719946053431,-500.0,0.00014074,2]
[330929786,1719946053451,-500.0,0.00014074,2]
[330929787,1719946053471,-500.0,0.00014074,2]
[330929788,1719946053491,-500.0,0.00014074,2]
[330929789,1719946053512,-500.0,0.00014074,2]
[330929790,1719946053532,-500.0,0.00014074,2]
[330929791,1719946053554,-500.0,0.00014074,2]
[330929792,1719946053574,-500.0,0.00014074,2]
[330929793,1719946053594,-500.0,0.00014074,2]
[330929794,1719946053614,-500.0,0.00014074,2]
[330929795,1719946053635,-500.0,0.00014074,2]
[330929796,1719946053661,-887.42,0.00014074,2]
[330929797,1719946053682,-501.62237539,0.00014074,2]
[330929798,1719946053706,-428.15097289,0.00014074,2]
[330929799,1719946053728,-500.0,0.00014074,2]
[330929800,1719946053754,-500.0,0.00014074,2]
[330929801,1719946053775,-540.24,0.00014074,2]
[330929802,1719946053796,-500.0,0.00014074,2]
[330929803,1719946053816,-500.0,0.00014074,2]
[330929804,1719946053837,-500.0,0.00014074,2]
[330929805,1719946053858,-613.15,0.00014074,2]
[330929806,1719946053880,-500.0,0.00014074,2]
[330929807,1719946053900,-500.0,0.00014074,2]
[330929808,1719946053920,-213.97264644,0.00014074,2]
[330929809,1719946053946,-500.0,0.00014074,2]
[330929810,1719946053968,-502.8891917,0.00014074,2]
[330929811,1719946053988,-500.0,0.00014074,2]
[330929812,1719946054008,-500.0,0.00014074,2]
[330929813,1719946054029,-508.53978107,0.00014074,2]
[330929814,1719946054053,-500.0,0.00014074,2]